[Event "*** Titled Tuesday Blitz"]
[Site "Chess.com"]
[Date "2020.10.20"]
[Round "9"]
[White "Skat2704"]
[Black "dosto07"]
[Result "1-0"]
[WhiteElo "2332"]
[BlackElo "2319"]
[TimeControl "180+1"]
[EndTime "11:47:10 PDT"]
[Termination "Skat2704 won on time"]

1. d4 {[%clk 0:03:00.3]} 1... d5 {[%clk 0:02:59.3]} 2. Nf3 {[%clk 0:03:00.2]}
2... Nf6 {[%clk 0:02:58.7]} 3. c4 {[%clk 0:03:00.3]} 3... dxc4 {[%clk
0:02:58.8]} 4. e3 {[%clk 0:02:59.4]} 4... e6 {[%clk 0:02:58.4]} 5. Bxc4 {[%clk
0:02:59.2]} 5... c5 {[%clk 0:02:59.3]} 6. O-O {[%clk 0:02:58.7]} 6... a6 {[%clk
0:02:58.5]} 7. b3 {[%clk 0:02:58.2]} 7... Nc6 {[%clk 0:02:57.1]} 8. Bb2 {[%clk
0:02:57.8]} 8... cxd4 {[%clk 0:02:56.9]} 9. exd4 {[%clk 0:02:57.2]} 9... Be7
{[%clk 0:02:55.2]} 10. Nbd2 {[%clk 0:02:54.3]} 10... O-O {[%clk 0:02:54.5]} 11.
Rc1 {[%clk 0:02:53]} 11... Bd7 {[%clk 0:02:50.2]} 12. Ne5 {[%clk 0:02:47.7]}
12... Nb4 {[%clk 0:02:45.8]} 13. a3 {[%clk 0:02:43]} 13... Nbd5 {[%clk
0:02:45.5]} 14. Qe2 {[%clk 0:02:40.7]} 14... Rc8 {[%clk 0:02:28.9]} 15. Ne4
{[%clk 0:02:34]} 15... Nxe4 {[%clk 0:02:26.7]} 16. Qxe4 {[%clk 0:02:32.5]} 16...
Bc6 {[%clk 0:02:20.6]} 17. Nxc6 {[%clk 0:02:29.4]} 17... Rxc6 {[%clk 0:02:18.8]}
18. Rfe1 {[%clk 0:02:24.9]} 18... Bf6 {[%clk 0:02:06.4]} 19. Bd3 {[%clk
0:02:23.3]} 19... g6 {[%clk 0:01:59.3]} 20. Rxc6 {[%clk 0:02:22.3]} 20... bxc6
{[%clk 0:01:58.9]} 21. Bxa6 {[%clk 0:02:21.1]} 21... c5 {[%clk 0:01:56]} 22. Bc4
{[%clk 0:02:12.5]} 22... cxd4 {[%clk 0:01:53.3]} 23. Bxd4 {[%clk 0:02:04.8]}
23... Bxd4 {[%clk 0:01:45]} 24. Qxd4 {[%clk 0:02:04.6]} 24... Qa5 {[%clk
0:01:45.4]} 25. Ra1 {[%clk 0:01:58.5]} 25... Rd8 {[%clk 0:01:44.1]} 26. h3
{[%clk 0:01:48.9]} 26... Nc3 {[%clk 0:01:31.2]} 27. Qf6 {[%clk 0:01:39.8]} 27...
Rd2 {[%clk 0:01:18.1]} 28. b4 {[%clk 0:01:26.7]} 28... Qa7 {[%clk 0:01:14.5]}
29. Re1 {[%clk 0:01:08.5]} 29... Nd1 {[%clk 0:00:16.1]} 30. Rxe6 {[%clk
0:00:58.9]} 30... Qxf2+ {[%clk 0:00:03.5]} 31. Qxf2 {[%clk 0:00:58.2]} 31...
Nxf2 {[%clk 0:00:03.4]} 32. Re8+ {[%clk 0:00:56.9]} 32... Kg7 {[%clk 0:00:04.3]}
33. Re7 {[%clk 0:00:56]} 33... Kg8 {[%clk 0:00:05.2]} 34. Rxf7 {[%clk
0:00:50.9]} 34... Nd3 {[%clk 0:00:06.1]} 35. Rd7+ {[%clk 0:00:47.3]} 35... Kf8
{[%clk 0:00:02.6]} 36. Rxd3 {[%clk 0:00:46.1]} 1-0

[Event "*** Titled Tuesday Blitz"]
[Site "Chess.com"]
[Date "2020.10.20"]
[Round "9"]
[White "Aleksey_Sorokin"]
[Black "Annawel"]
[Result "1-0"]
[WhiteElo "2855"]
[BlackElo "2926"]
[TimeControl "180+1"]
[EndTime "11:47:11 PDT"]
[Termination "Aleksey_Sorokin won on time"]

1. d4 {[%clk 0:03:00.9]} 1... f5 {[%clk 0:02:52.9]} 2. Nf3 {[%clk 0:03:00.3]}
2... Nf6 {[%clk 0:02:49.6]} 3. g3 {[%clk 0:03:00.7]} 3... g6 {[%clk 0:02:50.2]}
4. Bg2 {[%clk 0:03:01]} 4... Bg7 {[%clk 0:02:50.9]} 5. O-O {[%clk 0:03:01.9]}
5... O-O {[%clk 0:02:51.4]} 6. b3 {[%clk 0:03:02.5]} 6... b6 {[%clk 0:02:50.6]}
7. Bb2 {[%clk 0:03:02.2]} 7... Bb7 {[%clk 0:02:51]} 8. c4 {[%clk 0:03:00.5]}
8... e6 {[%clk 0:02:50.1]} 9. Nc3 {[%clk 0:03:00.4]} 9... Ne4 {[%clk 0:02:41.3]}
10. Nxe4 {[%clk 0:03:00.2]} 10... Bxe4 {[%clk 0:02:42.2]} 11. Qd2 {[%clk
0:02:58.3]} 11... Qe7 {[%clk 0:02:36.1]} 12. Rad1 {[%clk 0:02:57.4]} 12... d6
{[%clk 0:02:32.6]} 13. Rfe1 {[%clk 0:02:55.4]} 13... Nd7 {[%clk 0:02:32.7]} 14.
d5 {[%clk 0:02:44.6]} 14... e5 {[%clk 0:02:29.5]} 15. Bh3 {[%clk 0:02:34.5]}
15... Bxf3 {[%clk 0:02:13.7]} 16. exf3 {[%clk 0:02:35.4]} 16... Rae8 {[%clk
0:02:10]} 17. b4 {[%clk 0:02:28.8]} 17... Kh8 {[%clk 0:01:57.8]} 18. Kg2 {[%clk
0:02:28.5]} 18... h5 {[%clk 0:01:19]} 19. Kh1 {[%clk 0:02:21.4]} 19... Kh7
{[%clk 0:01:19.1]} 20. Bc1 {[%clk 0:02:12.7]} 20... Nf6 {[%clk 0:00:54.8]} 21.
Qg5 {[%clk 0:02:06.8]} 21... Qf7 {[%clk 0:00:52.7]} 22. a4 {[%clk 0:01:59.3]}
22... Re7 {[%clk 0:00:52.1]} 23. Qh4 {[%clk 0:01:51.5]} 23... Rfe8 {[%clk
0:00:48.9]} 24. Bg5 {[%clk 0:01:44.8]} 24... e4 {[%clk 0:00:48.3]} 25. Qf4
{[%clk 0:01:37.9]} 25... exf3 {[%clk 0:00:43.8]} 26. Rxe7 {[%clk 0:01:37]} 26...
Rxe7 {[%clk 0:00:44.7]} 27. Qxf3 {[%clk 0:01:35.4]} 27... Re4 {[%clk 0:00:45.4]}
28. c5 {[%clk 0:01:27.7]} 28... dxc5 {[%clk 0:00:33.9]} 29. bxc5 {[%clk
0:01:25.7]} 29... Nxd5 {[%clk 0:00:31.4]} 30. c6 {[%clk 0:01:16.2]} 30... Nc3
{[%clk 0:00:24.8]} 31. Rd3 {[%clk 0:00:44.1]} 31... Qc4 {[%clk 0:00:20.3]} 32.
Bxf5 {[%clk 0:00:38.7]} 32... Re1+ {[%clk 0:00:12]} 33. Kg2 {[%clk 0:00:38.6]}
33... Qg8 {[%clk 0:00:01.4]} 34. Qxh5+ {[%clk 0:00:37.6]} 1-0

[Event "*** Titled Tuesday Blitz"]
[Site "Chess.com"]
[Date "2020.10.20"]
[Round "9"]
[White "MarkoPe"]
[Black "Loy_Konstantin"]
[Result "1-0"]
[WhiteElo "2191"]
[BlackElo "2360"]
[TimeControl "180+1"]
[EndTime "11:47:11 PDT"]
[Termination "MarkoPe won by resignation"]

1. c4 {[%clk 0:03:00.9]} 1... e5 {[%clk 0:02:48.1]} 2. Nc3 {[%clk 0:02:57.9]}
2... d6 {[%clk 0:02:47.2]} 3. g3 {[%clk 0:02:57]} 3... f5 {[%clk 0:02:47.1]} 4.
d4 {[%clk 0:02:50.8]} 4... e4 {[%clk 0:02:46.5]} 5. f3 {[%clk 0:02:48.5]} 5...
Nf6 {[%clk 0:02:45.6]} 6. Bg2 {[%clk 0:02:47.9]} 6... exf3 {[%clk 0:02:19.6]} 7.
Nxf3 {[%clk 0:02:46.9]} 7... Be7 {[%clk 0:02:19.3]} 8. O-O {[%clk 0:02:45.8]}
8... O-O {[%clk 0:02:19.5]} 9. Qd3 {[%clk 0:02:27]} 9... Nc6 {[%clk 0:02:14.2]}
10. Bg5 {[%clk 0:02:18]} 10... Ne4 {[%clk 0:01:54.4]} 11. Nxe4 {[%clk
0:02:00.5]} 11... fxe4 {[%clk 0:01:53.1]} 12. Qxe4 {[%clk 0:02:00.2]} 12... Bxg5
{[%clk 0:01:45.6]} 13. Qd5+ {[%clk 0:02:00.2]} 13... Kh8 {[%clk 0:01:35.7]} 14.
Nxg5 {[%clk 0:01:59.9]} 14... Bg4 {[%clk 0:00:43.3]} 15. Nf7+ {[%clk 0:01:38.7]}
15... Rxf7 {[%clk 0:00:43.1]} 16. Rxf7 {[%clk 0:01:39.6]} 16... Bxe2 {[%clk
0:00:38.4]} 17. Re1 {[%clk 0:01:33.9]} 17... Bd3 {[%clk 0:00:36.9]} 18. Be4
{[%clk 0:01:06.3]} 18... Nb4 {[%clk 0:00:27.5]} 19. Qf5 {[%clk 0:01:04.1]} 19...
g6 {[%clk 0:00:26.3]} 20. Qh3 {[%clk 0:00:50.4]} 20... Qg8 {[%clk 0:00:18.9]}
21. Qd7 {[%clk 0:00:45.1]} 21... Bxe4 {[%clk 0:00:15.8]} 22. Rxe4 {[%clk
0:00:43.1]} 22... Rf8 {[%clk 0:00:16]} 23. Ree7 {[%clk 0:00:37.8]} 23... Rxf7
{[%clk 0:00:13.8]} 24. Rxf7 {[%clk 0:00:38.7]} 24... Nc6 {[%clk 0:00:14]} 25.
Qxc7 {[%clk 0:00:36]} 25... Nxd4 {[%clk 0:00:13.5]} 26. Qxb7 {[%clk 0:00:32.9]}
26... Ne2+ {[%clk 0:00:12.8]} 27. Kg2 {[%clk 0:00:28.9]} 27... Nd4 {[%clk
0:00:13.3]} 28. Rc7 {[%clk 0:00:26.1]} 28... Nf5 {[%clk 0:00:13.5]} 29. Rc8
{[%clk 0:00:23.7]} 29... Ne3+ {[%clk 0:00:12.4]} 30. Kg1 {[%clk 0:00:21.4]} 1-0

[Event "*** Titled Tuesday Blitz"]
[Site "Chess.com"]
[Date "2020.10.20"]
[Round "9"]
[White "ChainsOfFantasia"]
[Black "nrvisakh"]
[Result "0-1"]
[WhiteElo "2495"]
[BlackElo "2703"]
[TimeControl "180+1"]
[EndTime "11:47:16 PDT"]
[Termination "nrvisakh won on time"]

1. d4 {[%clk 0:03:00.9]} 1... Nf6 {[%clk 0:02:59.4]} 2. c4 {[%clk 0:03:00.1]}
2... g6 {[%clk 0:03:00.3]} 3. Nc3 {[%clk 0:02:59.6]} 3... Bg7 {[%clk 0:03:00]}
4. e4 {[%clk 0:03:00.1]} 4... d6 {[%clk 0:02:59.8]} 5. h3 {[%clk 0:03:00.4]}
5... O-O {[%clk 0:02:59.9]} 6. Be3 {[%clk 0:03:00.9]} 6... e5 {[%clk 0:02:48.4]}
7. d5 {[%clk 0:02:59.4]} 7... a5 {[%clk 0:02:44.7]} 8. g4 {[%clk 0:02:58.6]}
8... Na6 {[%clk 0:02:44]} 9. Nge2 {[%clk 0:02:56.8]} 9... Nd7 {[%clk 0:02:42.9]}
10. Qd2 {[%clk 0:02:51.9]} 10... Ndc5 {[%clk 0:02:41.9]} 11. Ng3 {[%clk
0:02:51]} 11... f5 {[%clk 0:02:28.8]} 12. gxf5 {[%clk 0:02:39.8]} 12... gxf5
{[%clk 0:02:29.7]} 13. Nxf5 {[%clk 0:02:33]} 13... Rxf5 {[%clk 0:02:23.1]} 14.
exf5 {[%clk 0:02:33.9]} 14... Bxf5 {[%clk 0:02:23.9]} 15. Rg1 {[%clk 0:02:19.7]}
15... Bg6 {[%clk 0:02:23.8]} 16. Be2 {[%clk 0:01:37.3]} 16... Qh4 {[%clk
0:02:09.6]} 17. Rg3 {[%clk 0:01:26.3]} 17... Rf8 {[%clk 0:02:07.2]} 18. Bg5
{[%clk 0:01:19.1]} 18... Qd4 {[%clk 0:02:06.9]} 19. Be3 {[%clk 0:00:25.8]} 19...
Qh4 {[%clk 0:02:06.2]} 20. Bg5 {[%clk 0:00:25.4]} 20... Qd4 {[%clk 0:02:05]} 21.
Be3 {[%clk 0:00:25.9]} 21... Nd3+ {[%clk 0:01:57.9]} 22. Kf1 {[%clk 0:00:18.2]}
22... Qh4 {[%clk 0:01:45.9]} 23. Kg1 {[%clk 0:00:14.9]} 23... Nf4 {[%clk
0:01:44.3]} 24. Bf1 {[%clk 0:00:14.3]} 24... Nb4 {[%clk 0:01:42.1]} 25. Rg4
{[%clk 0:00:11.9]} 25... Nxh3+ {[%clk 0:01:41.6]} 26. Bxh3 {[%clk 0:00:10]}
26... Qxh3 {[%clk 0:01:42.5]} 27. Rg3 {[%clk 0:00:10.4]} 27... Qf5 {[%clk
0:01:40.8]} 28. Nb5 {[%clk 0:00:09.1]} 28... Qf7 {[%clk 0:01:38.8]} 29. a3
{[%clk 0:00:08.4]} 29... Nd3 {[%clk 0:01:38.3]} 30. Rd1 {[%clk 0:00:06.6]} 30...
Nf4 {[%clk 0:01:37.4]} 31. c5 {[%clk 0:00:05.3]} 31... Qd7 {[%clk 0:01:30.4]}
32. a4 {[%clk 0:00:04.1]} 32... Be4 {[%clk 0:01:24.3]} 33. cxd6 {[%clk 0:00:03]}
33... cxd6 {[%clk 0:01:24.4]} 34. Qe1 {[%clk 0:00:01]} 34... Bxd5 {[%clk
0:01:09.1]} 35. f3 {[%clk 0:00:01.3]} 35... Nh3+ {[%clk 0:00:51.1]} 36. Kh2
{[%clk 0:00:01.1]} 36... Nf4 {[%clk 0:00:48.1]} 0-1

[Event "*** Titled Tuesday Blitz"]
[Site "Chess.com"]
[Date "2020.10.20"]
[Round "9"]
[White "Savagelittlemole"]
[Black "infinitegiantkiller"]
[Result "0-1"]
[WhiteElo "2606"]
[BlackElo "2394"]
[TimeControl "180+1"]
[EndTime "11:47:17 PDT"]
[Termination "infinitegiantkiller won by checkmate"]

1. e4 {[%clk 0:03:00.9]} 1... e6 {[%clk 0:03:00.9]} 2. d4 {[%clk 0:03:00.7]}
2... d5 {[%clk 0:03:01.8]} 3. Nd2 {[%clk 0:03:01.3]} 3... c5 {[%clk 0:03:00.4]}
4. Ngf3 {[%clk 0:03:00.8]} 4... Nf6 {[%clk 0:02:45.3]} 5. e5 {[%clk 0:02:58.8]}
5... Nfd7 {[%clk 0:02:45]} 6. c3 {[%clk 0:02:57.2]} 6... Nc6 {[%clk 0:02:45.2]}
7. Bd3 {[%clk 0:02:56.9]} 7... Qb6 {[%clk 0:02:42.4]} 8. O-O {[%clk 0:02:57]}
8... cxd4 {[%clk 0:02:40.6]} 9. cxd4 {[%clk 0:02:57.9]} 9... Nxd4 {[%clk
0:02:39.6]} 10. Nxd4 {[%clk 0:02:58.8]} 10... Qxd4 {[%clk 0:02:40.1]} 11. Nb3
{[%clk 0:02:56.3]} 11... Qxe5 {[%clk 0:02:37.9]} 12. Re1 {[%clk 0:02:55.7]}
12... Qd6 {[%clk 0:02:28.8]} 13. Qg4 {[%clk 0:02:50.2]} 13... Nf6 {[%clk
0:02:25]} 14. Qf3 {[%clk 0:02:46.9]} 14... Be7 {[%clk 0:02:22.8]} 15. Bf4 {[%clk
0:02:47]} 15... Qb6 {[%clk 0:02:19.8]} 16. Be3 {[%clk 0:02:36.6]} 16... Qd8
{[%clk 0:02:17.4]} 17. Qg3 {[%clk 0:02:24.6]} 17... O-O {[%clk 0:02:14.2]} 18.
Bh6 {[%clk 0:02:12.5]} 18... Ne8 {[%clk 0:01:42]} 19. Rac1 {[%clk 0:01:59.2]}
19... Bf6 {[%clk 0:01:37.6]} 20. Bf4 {[%clk 0:01:56.6]} 20... g6 {[%clk
0:01:35]} 21. Nd2 {[%clk 0:01:34]} 21... Bd7 {[%clk 0:01:30.3]} 22. Nf3 {[%clk
0:01:33.5]} 22... Rc8 {[%clk 0:01:25.9]} 23. Ne5 {[%clk 0:01:33.7]} 23... Bc6
{[%clk 0:01:18.6]} 24. Ng4 {[%clk 0:01:32.5]} 24... Bxb2 {[%clk 0:01:15.8]} 25.
Nh6+ {[%clk 0:01:21.2]} 25... Kh8 {[%clk 0:01:12.3]} 26. Be5+ {[%clk 0:01:21.1]}
26... Bxe5 {[%clk 0:01:07.7]} 27. Qxe5+ {[%clk 0:01:22]} 27... Qf6 {[%clk
0:00:59.2]} 28. Qg3 {[%clk 0:01:21.2]} 28... Ng7 {[%clk 0:00:56.1]} 29. Re3
{[%clk 0:01:16.4]} 29... Nf5 {[%clk 0:00:50.9]} 30. Bxf5 {[%clk 0:01:15.2]}
30... gxf5 {[%clk 0:00:47.5]} 31. Qh3 {[%clk 0:01:14.2]} 31... d4 {[%clk
0:00:30.9]} 32. Rg3 {[%clk 0:01:13.5]} 32... Be4 {[%clk 0:00:26]} 33. Rf1 {[%clk
0:00:59.1]} 33... d3 {[%clk 0:00:22.9]} 34. Qh5 {[%clk 0:00:57.6]} 34... d2
{[%clk 0:00:19.8]} 35. h4 {[%clk 0:00:54]} 35... Rc1 {[%clk 0:00:16.8]} 36. Rg5
{[%clk 0:00:33.7]} 36... Rxf1+ {[%clk 0:00:14.2]} 37. Kxf1 {[%clk 0:00:33.9]}
37... Qa1+ {[%clk 0:00:09]} 38. Ke2 {[%clk 0:00:31.2]} 38... Qe1# {[%clk
0:00:09.6]} 0-1

[Event "*** Titled Tuesday Blitz"]
[Site "Chess.com"]
[Date "2020.10.20"]
[Round "9"]
[White "Morshynska"]
[Black "Pertinhez76"]
[Result "0-1"]
[WhiteElo "2213"]
[BlackElo "2146"]
[TimeControl "180+1"]
[EndTime "11:47:19 PDT"]
[Termination "Pertinhez76 won on time"]

1. Nf3 {[%clk 0:03:00.9]} 1... Nf6 {[%clk 0:02:57.3]} 2. g3 {[%clk 0:03:01.1]}
2... c5 {[%clk 0:02:54.2]} 3. Bg2 {[%clk 0:03:01.7]} 3... Nc6 {[%clk 0:02:53.1]}
4. d4 {[%clk 0:03:02.1]} 4... cxd4 {[%clk 0:02:52.6]} 5. Nxd4 {[%clk 0:03:03]}
5... g6 {[%clk 0:02:52]} 6. O-O {[%clk 0:03:02.4]} 6... Bg7 {[%clk 0:02:52]} 7.
c4 {[%clk 0:03:02.2]} 7... O-O {[%clk 0:02:50]} 8. Nc3 {[%clk 0:03:01.8]} 8...
a6 {[%clk 0:02:38.6]} 9. b3 {[%clk 0:02:41]} 9... Qc7 {[%clk 0:02:37.2]} 10. Bb2
{[%clk 0:02:35.8]} 10... d6 {[%clk 0:02:34.8]} 11. Rc1 {[%clk 0:02:33.3]} 11...
Qb8 {[%clk 0:02:28.2]} 12. Nxc6 {[%clk 0:02:29]} 12... bxc6 {[%clk 0:02:28]} 13.
Bxc6 {[%clk 0:02:29.9]} 13... Bb7 {[%clk 0:02:28.1]} 14. Bxb7 {[%clk 0:02:26.6]}
14... Qxb7 {[%clk 0:02:28.3]} 15. Qd2 {[%clk 0:02:06.8]} 15... Rac8 {[%clk
0:02:27.9]} 16. Rc2 {[%clk 0:01:55.6]} 16... Rc5 {[%clk 0:02:27.2]} 17. f3
{[%clk 0:01:45]} 17... Rfc8 {[%clk 0:02:25.5]} 18. e4 {[%clk 0:01:37.7]} 18...
h5 {[%clk 0:02:24.5]} 19. Nd5 {[%clk 0:01:05.5]} 19... Ne8 {[%clk 0:02:03.4]}
20. Bxg7 {[%clk 0:01:00.9]} 20... Nxg7 {[%clk 0:02:04.3]} 21. Qh6 {[%clk
0:00:46.2]} 21... Re8 {[%clk 0:01:53.1]} 22. h4 {[%clk 0:00:26.3]} 22... Qd7
{[%clk 0:01:52.1]} 23. Kg2 {[%clk 0:00:24.4]} 23... Qd8 {[%clk 0:01:51.8]} 24.
g4 {[%clk 0:00:22.6]} 24... e6 {[%clk 0:01:50]} 25. Ne3 {[%clk 0:00:18.7]} 25...
Qxh4 {[%clk 0:01:49.5]} 26. Rh1 {[%clk 0:00:17.5]} 26... Qg5 {[%clk 0:01:49.5]}
27. Qxg5 {[%clk 0:00:16.9]} 27... Rxg5 {[%clk 0:01:50.3]} 28. f4 {[%clk
0:00:14.9]} 28... Rc5 {[%clk 0:01:50.2]} 29. g5 {[%clk 0:00:15.1]} 29... Rb8
{[%clk 0:01:48.4]} 30. Rd2 {[%clk 0:00:14.8]} 30... a5 {[%clk 0:01:48.2]} 31.
Rxd6 {[%clk 0:00:13.5]} 31... a4 {[%clk 0:01:49.1]} 32. Rd3 {[%clk 0:00:13.2]}
32... axb3 {[%clk 0:01:47]} 33. axb3 {[%clk 0:00:14.1]} 33... e5 {[%clk
0:01:35.4]} 34. f5 {[%clk 0:00:10.9]} 34... Rc6 {[%clk 0:01:29.3]} 35. Rhd1
{[%clk 0:00:09]} 35... Rcb6 {[%clk 0:01:25.1]} 36. Rd8+ {[%clk 0:00:08.9]} 36...
Kh7 {[%clk 0:01:25]} 37. Rxb8 {[%clk 0:00:08.8]} 37... Rxb8 {[%clk 0:01:25]} 38.
Rd3 {[%clk 0:00:09.4]} 38... Ra8 {[%clk 0:01:17.3]} 39. Kf3 {[%clk 0:00:09.5]}
39... Ra2 {[%clk 0:01:17.6]} 40. f6 {[%clk 0:00:09.2]} 40... Ne6 {[%clk
0:01:16.6]} 41. Rd7 {[%clk 0:00:08.6]} 41... Nxg5+ {[%clk 0:01:12.7]} 42. Kg3
{[%clk 0:00:07.8]} 42... Nxe4+ {[%clk 0:01:13.1]} 43. Kh3 {[%clk 0:00:06.7]}
43... Ng5+ {[%clk 0:01:04.7]} 44. Kg3 {[%clk 0:00:05]} 44... Ne4+ {[%clk
0:01:04]} 45. Kh3 {[%clk 0:00:05.1]} 45... Kh6 {[%clk 0:01:03.6]} 46. Nd5 {[%clk
0:00:04.6]} 46... g5 {[%clk 0:01:01.4]} 0-1

[Event "*** Titled Tuesday Blitz"]
[Site "Chess.com"]
[Date "2020.10.20"]
[Round "9"]
[White "akanga001"]
[Black "nitpicker"]
[Result "1-0"]
[WhiteElo "1901"]
[BlackElo "2273"]
[TimeControl "180+1"]
[EndTime "11:47:22 PDT"]
[Termination "akanga001 won by checkmate"]

1. d4 {[%clk 0:03:00.9]} 1... Nf6 {[%clk 0:02:59.3]} 2. c4 {[%clk 0:03:01.1]}
2... e6 {[%clk 0:02:58.9]} 3. g3 {[%clk 0:03:00.7]} 3... d5 {[%clk 0:02:56.6]}
4. Bg2 {[%clk 0:03:00.7]} 4... Bb4+ {[%clk 0:02:56.2]} 5. Bd2 {[%clk 0:02:59.7]}
5... Be7 {[%clk 0:02:56.6]} 6. Nf3 {[%clk 0:02:59.3]} 6... O-O {[%clk
0:02:56.7]} 7. O-O {[%clk 0:02:59.3]} 7... c6 {[%clk 0:02:56.9]} 8. Qc2 {[%clk
0:02:57.7]} 8... b6 {[%clk 0:02:56.7]} 9. b3 {[%clk 0:02:55.2]} 9... Ba6 {[%clk
0:02:56.6]} 10. Bg5 {[%clk 0:02:45.3]} 10... Nbd7 {[%clk 0:02:56.1]} 11. Nbd2
{[%clk 0:02:45.1]} 11... Rc8 {[%clk 0:02:55.4]} 12. e3 {[%clk 0:02:44.3]} 12...
c5 {[%clk 0:02:53.1]} 13. dxc5 {[%clk 0:02:41.6]} 13... Nxc5 {[%clk 0:02:49.5]}
14. Rac1 {[%clk 0:02:41]} 14... dxc4 {[%clk 0:02:44.4]} 15. Nxc4 {[%clk
0:02:39.8]} 15... Qd3 {[%clk 0:02:23.1]} 16. Rfd1 {[%clk 0:02:32.1]} 16... Qxc2
{[%clk 0:02:21.5]} 17. Rxc2 {[%clk 0:02:30.8]} 17... Nce4 {[%clk 0:02:18.6]} 18.
Bxf6 {[%clk 0:02:28.7]} 18... Nxf6 {[%clk 0:02:14.7]} 19. Rdc1 {[%clk
0:02:27.4]} 19... Rfd8 {[%clk 0:02:07.6]} 20. Nd4 {[%clk 0:02:24.1]} 20... Nd5
{[%clk 0:01:52.1]} 21. Ne5 {[%clk 0:02:05.1]} 21... Rxc2 {[%clk 0:01:35.7]} 22.
Rxc2 {[%clk 0:02:06]} 22... Nb4 {[%clk 0:01:29.8]} 23. Rc1 {[%clk 0:01:42.3]}
23... Nxa2 {[%clk 0:01:24.8]} 24. Ra1 {[%clk 0:01:41.2]} 24... Nb4 {[%clk
0:01:24.2]} 25. Ndc6 {[%clk 0:01:40.6]} 25... Bf6 {[%clk 0:00:39.1]} 26. Nxb4
{[%clk 0:01:25.1]} 26... Bb5 {[%clk 0:00:39.3]} 27. f4 {[%clk 0:01:16.5]} 27...
a5 {[%clk 0:00:37.2]} 28. Nc2 {[%clk 0:01:10.3]} 28... Rd2 {[%clk 0:00:35.6]}
29. Nd4 {[%clk 0:01:09.6]} 29... Ba6 {[%clk 0:00:30.8]} 30. Rc1 {[%clk
0:01:04.8]} 30... Bxe5 {[%clk 0:00:25.2]} 31. fxe5 {[%clk 0:01:03.6]} 31... Rd3
{[%clk 0:00:22.5]} 32. Rc6 {[%clk 0:00:28.8]} 32... Rxe3 {[%clk 0:00:17.6]} 33.
Rxb6 {[%clk 0:00:28.1]} 33... Bc8 {[%clk 0:00:11.1]} 34. Rb8 {[%clk 0:00:27.7]}
34... Rc3 {[%clk 0:00:11.1]} 35. Nc6 {[%clk 0:00:27.5]} 35... Kf8 {[%clk
0:00:08.7]} 36. Rxc8# {[%clk 0:00:25.5]} 1-0

[Event "*** Titled Tuesday Blitz"]
[Site "Chess.com"]
[Date "2020.10.20"]
[Round "9"]
[White "Grieve72"]
[Black "Matols"]
[Result "1-0"]
[WhiteElo "2433"]
[BlackElo "2261"]
[TimeControl "180+1"]
[EndTime "11:47:32 PDT"]
[Termination "Grieve72 won on time"]

1. d4 {[%clk 0:02:58.1]} 1... Nf6 {[%clk 0:02:59.1]} 2. Bg5 {[%clk 0:02:58.2]}
2... Ne4 {[%clk 0:02:57.5]} 3. Bf4 {[%clk 0:02:57.9]} 3... d5 {[%clk 0:02:57.5]}
4. e3 {[%clk 0:02:57.8]} 4... e6 {[%clk 0:02:48]} 5. Bd3 {[%clk 0:02:56.9]} 5...
Bd6 {[%clk 0:02:35.4]} 6. Ne2 {[%clk 0:02:56.8]} 6... Nd7 {[%clk 0:02:25.8]} 7.
O-O {[%clk 0:02:45.6]} 7... e5 {[%clk 0:02:09.6]} 8. dxe5 {[%clk 0:02:26]} 8...
Nxe5 {[%clk 0:02:08.6]} 9. Bxe4 {[%clk 0:02:25.4]} 9... dxe4 {[%clk 0:02:08.5]}
10. Nbc3 {[%clk 0:02:17.8]} 10... f5 {[%clk 0:01:50.8]} 11. Nb5 {[%clk
0:01:55.5]} 11... Be6 {[%clk 0:01:33.9]} 12. Nxd6+ {[%clk 0:01:44.5]} 12... cxd6
{[%clk 0:01:17.6]} 13. Nd4 {[%clk 0:01:33.5]} 13... Bd7 {[%clk 0:01:10.9]} 14.
Qh5+ {[%clk 0:01:09.9]} 14... g6 {[%clk 0:01:07.3]} 15. Qh6 {[%clk 0:01:09.4]}
15... Qe7 {[%clk 0:01:00.5]} 16. Bg5 {[%clk 0:01:05.7]} 16... Qf7 {[%clk
0:00:58.6]} 17. h3 {[%clk 0:00:56.2]} 17... Rc8 {[%clk 0:00:55.4]} 18. Rad1
{[%clk 0:00:42.5]} 18... Qf8 {[%clk 0:00:40.5]} 19. Qh4 {[%clk 0:00:41.6]} 19...
h6 {[%clk 0:00:35.2]} 20. Bf6 {[%clk 0:00:40]} 20... Rh7 {[%clk 0:00:35.3]} 21.
Bxe5 {[%clk 0:00:33.1]} 21... dxe5 {[%clk 0:00:35]} 22. Nb3 {[%clk 0:00:26.7]}
22... Rxc2 {[%clk 0:00:34]} 23. Rd5 {[%clk 0:00:20.3]} 23... Re7 {[%clk
0:00:30.6]} 24. Rfd1 {[%clk 0:00:18.6]} 24... Rc8 {[%clk 0:00:19.5]} 25. Nc5
{[%clk 0:00:11.2]} 25... Bc6 {[%clk 0:00:18.5]} 26. Rd6 {[%clk 0:00:11.6]} 26...
Rg7 {[%clk 0:00:07.6]} 27. Ne6 {[%clk 0:00:11]} 27... Qe7 {[%clk 0:00:04.4]} 28.
Nxg7+ {[%clk 0:00:10.3]} 28... Qxg7 {[%clk 0:00:04.5]} 29. Rd8+ {[%clk
0:00:09.6]} 1-0